Cogmind - Beta 17 @@@ ROGUE MODE // 2026.08.18 @ 00:57:56 Player: AL-EF0 Result: Destroyed by G-73 Enforcer with Phase Gun Performance ------------- Evolutions (8) 4000 Regions Visited (16) 3200 Robots Destroyed (173) 865 Value Destroyed (3849) 3849 Prototype IDs (66) 1320 Alien Tech Used (2) 400 Bonus (3508) 3508 TOTAL SCORE: 17142 Bonus ------- High Alert Combat Kills 54 Follower Combat Kills 1854 Registered with UFD 300 Met Optimus in HQ 500 Built Enhanced Grunts 300 Met R17 at Cetus 500 Cogmind --------- Core Integrity 0/1450 Matter 157/300 Energy 99/100 System Corruption 30% Temperature Cool (11) Movement Flying (30) Location -2/Testing Parts ------- > --- POWER (2) -------- (None) > --- PROPULSION (9) --- Faulty Diametric Drive Diametric Drive Faulty Diametric Drive > --- UTILITY (9) ------ Enhanced Optical Array Advanced Signal Interpreter Improved Hacking Suite > --- WEAPON (3) ------- (None) > --- INVENTORY (5) ---- Experimental Sensor Array Graphene Brace Improved Arc Projector Enhanced Hardcell Cannon Lance Peak State ------------ > --- POWER ------------ Light Fission Core Micro Antimatter Reactor > --- PROPULSION ------- VTOL Module Q-thruster Q-thruster Impulse Thruster Array Impulse Thruster Array Impulse Thruster Array > --- UTILITY ---------- Medium Storage Unit Enhanced Optical Array Experimental Sensor Array Advanced Signal Interpreter Advanced Transmission Jammer Medium Regenerative Plating Improved Hacking Suite Advanced Hacking Suite A0-MCA's Component Scanner > --- WEAPON ----------- Cooled Phase Cannon Molecular Scythe Lance > --- INVENTORY -------- Light Angular Momentum Engine Advanced Weight Redist. System Advanced Sensor Array Improved Particle Charger ECM Suite Graphene Brace Enhanced Nova Cannon Compact Linear Accelerator Heavy Rocket Launcher Advanced Datajack [Rating: 160] Favorites ----------- Power Light Angular Momentum Engine Engine Light Angular Momentum Engine Power Core Light Fission Core Reactor Micro Antimatter Reactor Propulsion Improved VTOL Module Treads Light Treads Leg Enhanced Biometal Leg Wheel Wheel Hover Unit Gravmag Array Flight Unit Improved VTOL Module Utility Medium Storage Unit Device Experimental Sensor Array Storage Medium Storage Unit Processor Improved Signal Interpreter Hackware Makeshift Hacking Suite Protection Hardened Medium Armor Plating Artifact Phase Armor Weapon Autogun Energy Gun Improved Medium Laser Energy Cannon Cooled Phase Cannon Ballistic Gun Autogun Ballistic Cannon Improved Light Cannon Launcher Grenade Launcher Impact Weapon Gravity Flail Slashing Weapon Scythe Piercing Weapon Spear Special Melee Weapon Advanced Datajack Build | -11 -10 -10 -9 -8 -7 -7 -7 -7 -5 -4 -4 -4 -3 -3 -2 -2 ------- Run | Yrd Mat Min Mat Mat Fac Sto Rec Scr Fac Fac Ext Cet Res Qua Res Tes Slots Evolved 16 | . . . 2 2 2 . . . 4 2 . . 2 . 2 . Power 1 | . . . . . . . . . 1 . . . . . . . Propulsion 7 | . . . 1 2 . . . . 1 1 . . . . 2 . Utility 7 | . . . 1 . 2 . . . 2 1 . . 1 . . . Weapon 1 | . . . . . . . . . . . . . 1 . . . Parts Attached 157 | 7 7 2 34 28 6 2 . 8 19 5 6 3 4 9 5 12 Power 17 | 1 1 . 4 2 1 1 . 1 1 . . . . . 2 3 Engine 11 | 1 1 . 4 2 . 1 . 1 . . . . . . 1 . Core 2 | . . . . . 1 . . . 1 . . . . . . . Reactor 4 | . . . . . . . . . . . . . . . 1 3 Propulsion 55 | 2 2 2 14 14 . . . 2 5 1 2 . 1 3 2 5 Treads 20 | 1 . 1 12 5 . . . 1 . . . . . . . . Leg 1 | . . . . . . . . . . . . . . . . 1 Wheel 5 | 1 2 1 1 . . . . . . . . . . . . . Hover 1 | . . . . . . . . . 1 . . . . . . . Flight 28 | . . . 1 9 . . . 1 4 1 2 . 1 3 2 4 Utility 52 | 2 1 . 8 6 3 . . 2 11 4 3 1 1 6 1 3 Device 20 | 1 . . 3 2 1 . . . 4 1 3 . 1 1 1 2 Storage 7 | 1 1 . 1 2 . . . . 1 . . . . . . 1 Processor 7 | . . . . 1 1 . . 1 2 1 . . . 1 . . Hackware 6 | . . . . . 1 . . 1 1 1 . . . 2 . . Protection 10 | . . . 4 1 . . . . 3 1 . 1 . . . . Artifact 2 | . . . . . . . . . . . . . . 2 . . Weapon 33 | 2 3 . 8 6 2 1 . 3 2 . 1 2 2 . . 1 Energy Gun 3 | . . . 2 . . . . . . . . 1 . . . . Energy Cannon 3 | . . . . 1 . 1 . . . . . . 1 . . . Ballistic Gun 9 | 2 2 . 3 1 . . . 1 . . . . . . . . Ballistic Cannon 1 | . . . . 1 . . . . . . . . . . . . Launcher 4 | . 1 . 2 . . . . 1 . . . . . . . . Special Weapon . | . . . . . . . . . . . . . . . . . Impact Weapon 5 | . . . 1 2 . . . . . . . 1 . . . 1 Slashing Weapon 4 | . . . . 1 1 . . . 1 . 1 . . . . . Piercing Weapon 2 | . . . . . 1 . . . 1 . . . . . . . Special Melee Weapon 2 | . . . . . . . . 1 . . . . 1 . . . Unidentified Prototypes 20 | . . . 6 1 1 2 . 2 . . . . . 2 . 6 Corrupted Parts 1 | . . . . . . . . . . . . 1 . . . . System Corruption 2 | . . . . . . . . . . . . 2 . . . . Parts Lost 55 | . . 1 2 17 . . . 8 . . 2 2 . . 14 9 Power 6 | . . . . 2 . . . 1 . . . . . . 2 1 Propulsion 24 | . . 1 1 7 . . . 3 . . 2 1 . . 6 3 Utility 13 | . . . . 2 . . . 3 . . . 1 . . 4 3 Weapon 12 | . . . 1 6 . . . 1 . . . . . . 2 2 Highest Loss Streak 16 | . . 1 1 16 . . . 6 . . 2 2 . . 12 8 To Critical Strikes 2 | . . . . . . . . . . . . . . . . 2 Average Backups 15 | 4 21 24 24 18 9 10 10 10 9 9 10 9 9 9 9 9 Power 1 | . 2 2 2 1 . . . . . . 1 1 1 1 . . Propulsion 3 | 2 6 5 4 4 2 2 2 2 1 . . . . 1 . . Utility 6 | . 4 7 10 8 5 6 6 6 5 6 5 5 5 5 5 4 Weapon 4 | . 7 7 6 4 1 2 2 2 3 3 3 3 2 1 3 3 Tool/Special . | . . . . . . . . . . . . . . . . . Unused Backups 45 | . 6 5 11 4 3 . . . 2 2 . 1 4 2 1 4 Power 3 | . 1 1 1 . . . . . . . . . . . . . Propulsion 5 | . 1 2 1 . . . . . 1 . . . . . . . Utility 16 | . . 2 4 2 1 . . . . 1 . . 3 2 . 1 Weapon 19 | . 4 . 4 2 1 . . . 1 1 . 1 1 . 1 3 Tool/Special 2 | . . . 1 . 1 . . . . . . . . . . . Average Slot Usage (%) 95 | . 100 100 99 92 99 100 100 98 83 92 92 91 93 91 81 42 Engine 8 | . 14 14 11 8 6 7 7 6 1 5 5 5 4 4 2 . Treads 9 | . 14 14 26 25 . . . . . . . . . . . . Wheel 3 | . 14 13 5 . . . . . . . . . . . . . Flight 18 | . . . . 17 38 38 38 37 24 29 29 28 27 25 23 4 Device 12 | . 14 14 8 3 14 15 15 14 9 12 15 18 18 10 10 7 Storage 8 | . 14 14 11 9 7 7 7 7 5 5 5 5 4 4 4 3 Processor 4 | . . . . 3 7 7 7 7 11 10 10 10 9 12 12 8 Hackware 3 | . . . . . 6 7 7 6 . 3 5 5 4 8 8 7 Protection 4 | . . . 13 10 . . . . 7 9 4 1 4 3 1 . Ballistic Gun 9 | . 27 28 16 9 . . . . . . . . . . . . Slashing Weapon 3 | . . . . . 6 7 7 6 5 5 5 4 4 4 3 . Piercing Weapon 2 | . . . . . 6 7 7 6 4 5 5 5 4 4 4 . Peak Build Rating 160 | 7 12 13 26 47 54 54 51 59 81 98 98 92 117 138 160 101 Average Rating 46 | 5 9 12 21 30 51 51 51 52 63 94 94 90 114 125 148 67 On Entrance 55 | . 7 12 13 24 47 51 51 51 22 81 96 92 90 117 136 46 Avg Prop Armor Cover (%) 11 | 11 11 11 14 . . . . . 10 . . . 1 3 3 17 Naked Turns . | . . . . . . . . . . . . . . . . . Heaviest Build 111 | 15 92 92 110 111 25 25 25 30 29 34 32 35 47 47 55 34 Greatest Support 100 | 10 10 10 60 100 25 25 25 25 43 47 49 40 56 56 72 16 Greatest Overweight (x) 10 | 1 9 9 10 1 . 1 . 1 . . . . 1 . 1 10 Average Overweight (x) 1 | . 8 9 5 . . . . . . . . . . . . . Largest Inventory Capacity 25 | 8 25 25 25 25 10 10 10 10 10 10 10 10 10 10 10 10 Average Capacity 16 | 7 24 25 25 19 10 10 10 10 10 10 10 10 10 10 10 9 Most Carried 25 | 8 25 25 25 25 10 10 10 10 10 10 10 10 10 10 10 10 Average Carried 15 | 4 21 24 24 18 9 10 10 9 9 9 9 9 9 9 9 9 Final Capacity 25 | 8 25 25 25 10 10 10 10 10 10 10 10 10 10 10 10 5 Final Carried 25 | 7 25 24 25 10 10 10 10 10 10 10 10 10 10 10 9 5 Class Distribution -------------------- 32% | Mutant 29% | Scout 15% | Scavenger-Mutant 10% | Sprinter 6% | Commander-Sprinter 3% | Hacker-Assassin Dominant Class ---------------- Mutant | -10/Materials Mutant | -10/Mines Scavenger-Mutant | -9/Materials Scavenger-Mutant | -8/Materials Scout | -7/Factory Scout | -7/Storage Scout | -7/Recycling Scout | -7/Scraptown Mutant | -5/Factory Sprinter | -4/Factory Commander-Sprinter | -4/Extension Commander-Sprinter | -4/Cetus Commander-Sprinter | -3/Research Hacker-Ninja | -3/Quarantine Hacker-Ninja | -2/Research Hacker-Assassin | -2/Testing Resources | -11 -10 -10 -9 -8 -7 -7 -7 -7 -5 -4 -4 -4 -3 -3 -2 -2 ----------- Run | Yrd Mat Min Mat Mat Fac Sto Rec Scr Fac Fac Ext Cet Res Qua Res Tes Matter Collected 4832 | 288 670 233 1530 851 111 110 20 243 232 90 80 25 70 164 105 10 Remotely . | . . . . . . . . . . . . . . . . . Salvage Created 5624 | 88 599 354 1741 911 231 136 70 76 313 184 381 . 174 137 149 80 Parts 376 | 7 46 18 140 45 28 6 2 5 20 5 18 . 5 8 16 7 Haulers Intercepted 10 | . 1 . 5 2 . . . . 2 . . . . . . . Recyclers Shooed 17 | . 3 1 7 . 1 . . . 1 . . . 1 . 1 2 Parts Field Recycled . | . . . . . . . . . . . . . . . . . Retrieved Matter . | . . . . . . . . . . . . . . . . . Parts Self-Destructed 5 | . . . . . . . . 5 . . . . . . . . Prevented . | . . . . . . . . . . . . . . . . . Parts Restored . | . . . . . . . . . . . . . . . . . Kills | -11 -10 -10 -9 -8 -7 -7 -7 -7 -5 -4 -4 -4 -3 -3 -2 -2 ------- Run | Yrd Mat Min Mat Mat Fac Sto Rec Scr Fac Fac Ext Cet Res Qua Res Tes Combat Hostiles Destroyed 90 | . 16 10 36 17 . . . . 4 . 3 . . . 3 1 Melee 3 | . . . . . . . . . . . 3 . . . . . Guns 51 | . 8 10 22 11 . . . . . . . . . . . . Cannons 2 | . . . . 1 . . . . . . . . . . . 1 AOE 33 | . 8 . 14 4 . . . . 4 . . . . . 3 . Classes Destroyed 15 | 2 6 . 2 3 . . . . . . 1 . . . 1 . Worker 12 | . 4 . 1 2 . 1 . . 1 . . . . . 3 . Builder 10 | . . . 3 1 . . . . 2 1 2 . . . . 1 Tunneler 5 | 1 . . . 1 . . . . . 1 . . . . 2 . Hauler 10 | . 1 . 5 2 . . . . 2 . . . . . . . Recycler 15 | 1 1 . 6 1 1 1 . . . 1 1 . 1 1 . . Mechanic 2 | . . . . 1 . . . . . . . . 1 . . . Operator 13 | . 2 . 4 1 4 . . . 1 . . . . 1 . . Watcher 16 | . 1 . 4 3 3 1 . . 2 . 1 . . . 1 . Swarmer 38 | . 9 4 18 3 . . . . 4 . . . . . . . Cutter 3 | . . . . . . . . . . . . . . . 3 . Grunt 32 | . 7 6 9 9 . . . . . . 1 . . . . . Brawler 1 | . . . . 1 . . . . . . . . . . . . Sentry 13 | . . . 9 3 . . . . . . 1 . . . . . Programmer 2 | . . . . . . . . . . . 1 . . . . 1 Heavy 1 | . . . . 1 . . . . . . . . . . . . Best Kill Streak 11 | 2 3 3 9 11 2 1 . . 6 1 1 . 1 1 5 1 Combat Bots Only 6 | . 3 3 5 6 . . . . 4 . 1 . . . 3 1 Max Kills in Single Turn 4 | 1 2 1 4 2 1 1 . . 3 1 1 . 1 1 2 1 Gunslinging 1 | . . . 1 . . . . . . . . . . . . . Exploded 4 | . 2 . 4 2 . . . . 3 . . . . . 2 . Melee 1 | . . . . . . . . . . . 1 . . . . . Uniques/NPCs Destroyed . | . . . . . . . . . . . . . . . . . Combat | -11 -10 -10 -9 -8 -7 -7 -7 -7 -5 -4 -4 -4 -3 -3 -2 -2 -------- Run | Yrd Mat Min Mat Mat Fac Sto Rec Scr Fac Fac Ext Cet Res Qua Res Tes Hostile Shots Fired 760 | . 38 33 165 181 . . . 14 23 10 14 5 . . 139 138 Missed 267 | . 14 10 41 47 . . . 9 15 9 5 5 . . 69 43 Hits 493 | . 24 23 124 134 . . . 5 8 1 9 . . . 70 95 Melee 9 | . . . . 5 . . . . . . . . . . 4 . Projectile 484 | . 24 23 124 129 . . . 5 8 1 9 . . . 66 95 Critical Strikes 26 | . . . . 8 . . . . . . . . . . 9 9 Part Disruptions 1 | . . . . . . . . . . . . . . . 1 . Damage Taken 9883 | . 273 262 1500 2713 20 . . 596 132 17 338 105 . . 1803 2124 Core 2487 | . 58 47 169 524 . . . 90 63 . 86 . . . 521 929 Absorbed by Shields 11 | . . . . . . . . . . . 11 . . . . . Redirected to Shielding 21 | . . . . . . . . . 16 5 . . . . . . Regen/Repaired (Parts) 87 | . . . 11 . . . . . . . . 53 23 . . . Core Remaining (%) 73 | 100 . 58 57 4 . . . 87 93 . . 92 . 100 . . Volleys Fired 394 | 3 57 25 128 76 . . . 7 3 . . . 3 47 27 18 Largest 2 | 2 2 2 2 2 . . . 1 1 . . . 1 1 1 1 Hottest 89 | 40 46 46 79 89 . . . 39 39 . . . 40 40 40 40 Shots Fired 657 | 6 107 51 248 140 . . . 7 3 . . . 3 47 27 18 Gun 512 | 6 99 51 240 116 . . . . . . . . . . . . Cannon 103 | . . . . 12 . . . . . . . . 3 47 23 18 Launcher 42 | . 8 . 8 12 . . . 7 3 . . . . . 4 . Special . | . . . . . . . . . . . . . . . . . Kinetic 467 | 6 99 51 185 126 . . . . . . . . . . . . Thermal 146 | . . . 55 . . . . . . . . . 3 47 23 18 Explosive 42 | . 8 . 8 12 . . . 7 3 . . . . . 4 . Electromagnetic 2 | . . . . 2 . . . . . . . . . . . . Robot Hit Streak 16 | 4 11 6 16 13 . . . . 1 . . . . . 2 7 Robot Miss Streak 7 | 1 4 7 4 3 . . . . . . . . . . 1 3 Penetration Max . | . . . . . . . . . . . . . . . . . Secondary Targets 5 | . . . 3 2 . . . . . . . . . . . . Max Gunslinging Chain 1 | . . . 1 1 . . . . . . . . . . . . Shots Hit Robots 467 | 4 60 28 168 111 11 3 1 4 15 4 23 . 6 6 12 11 Core Hits 261 | 3 34 16 86 61 8 3 1 5 13 1 7 . 2 2 14 5 Critical Kills 2 | . . . . 2 . . . . . . . . . . . . Critical Parts Destroyed 3 | . . . 1 2 . . . . . . . . . . . . Critical Strikes 17 | . . . 6 4 3 . . . 3 . 1 . . . . . Burn 5 | . . . 5 . . . . . . . . . . . . . Destroy 2 | . . . 1 1 . . . . . . . . . . . . Smash 3 | . . . . 3 . . . . . . . . . . . . Impale 7 | . . . . . 3 . . . 3 . 1 . . . . . Melee Attacks 331 | . . . 2 27 37 25 7 83 27 30 28 5 19 20 12 9 Impact 41 | . . . 2 25 1 . . . . . . 4 . . . 9 Slashing 207 | . . . . 2 26 19 6 79 14 27 4 1 15 12 2 . Piercing 74 | . . . . . 10 6 1 . 13 3 24 . 2 5 10 . Sneak Attacks 42 | . . . . 2 3 2 . 4 6 4 8 . 5 2 5 1 Combat Hostiles 2 | . . . . . . . . . . . 2 . . . . . Follow-up Attacks 8 | . . . . . 3 . . . . 1 3 . . . 1 . Damage Inflicted 14892 | 52 1166 447 3600 3019 533 186 74 205 1390 341 1427 . 380 172 1187 713 Guns 5233 | 52 778 438 2619 1346 . . . . . . . . . . . . Cannons 719 | . . . . 208 . . . . . . . . . . . 511 Explosions 3503 | . 343 . 904 1058 . . . 205 443 . . . . . 550 . Melee 5294 | . . . . 407 533 186 74 . 947 341 1427 . 380 172 637 190 Ramming 143 | . 45 9 77 . . . . . . . . . . . . 12 Kinetic 4721 | 52 778 438 1939 1514 . . . . . . . . . . . . Thermal 1191 | . . . 680 . . . . . . . . . . . . 511 Explosive 3503 | . 343 . 904 1058 . . . 205 443 . . . . . 550 . Electromagnetic 40 | . . . . 40 . . . . . . . . . . . . Impact 644 | . . . . 407 47 . . . . . . . . . . 190 Slashing 851 | . . . . . 72 74 74 . 94 190 143 . 158 . 46 . Piercing 3799 | . . . . . 414 112 . . 853 151 1284 . 222 172 591 . Highest Corruption 30 | . 1 1 3 . . . . 26 . . . 2 . . 10 30 Average Corruption 3 | . 1 1 3 . . . . 13 . . . 2 . . 4 13 Corruption Purged . | . . . . . . . . . . . . . . . . . Corruption Blocked . | . . . . . . . . . . . . . . . . . Effects 81 | . 13 10 27 . . . . 8 . . . 1 . . 3 19 Message Errors 13 | . 1 1 3 . . . . 3 . . . 1 . . . 4 Matter Fused 16 | . 3 . 6 . . . . 3 . . . . . . 1 3 Heat Flow Errors 10 | . 3 1 3 . . . . . . . . . . . 1 2 Energy Discharges 13 | . 1 4 4 . . . . . . . . . . . 1 3 Parts Rejected 1 | . . . . . . . . . . . . . . . . 1 Parts Fused 1 | . . 1 . . . . . . . . . . . . . . Data Loss (minor) 12 | . 2 1 5 . . . . 1 . . . . . . . 3 Data Loss (major) 4 | . . 1 1 . . . . 1 . . . . . . . 1 Misfires 5 | . 1 1 3 . . . . . . . . . . . . . Alerts 4 | . 2 . 2 . . . . . . . . . . . . . Misdirections 2 | . . . . . . . . . . . . . . . . 2 Overload Shots . | . . . . . . . . . . . . . . . . . Overflow Damage 1362 | . 29 . 6 173 59 . . . 134 184 326 . 66 . 235 150 Projectiles . | . . . . . . . . . . . . . . . . . Explosions 103 | . 29 . 6 7 . . . . . . . . . . 61 . Melee 1259 | . . . . 166 59 . . . 134 184 326 . 66 . 174 150 Knockbacks 9 | . 2 . . 6 1 . . . . . . . . . . . Impact 4 | . 2 . . 1 1 . . . . . . . . . . . Kinetic 5 | . . . . 5 . . . . . . . . . . . . Secondary . | . . . . . . . . . . . . . . . . . Self-Inflicted Damage 410 | . 44 . 72 66 . . . 40 . . . . . . 182 6 Shots 14 | . 2 . 3 4 . . . 1 . . . . . . 4 . Rammed 18 | . 4 2 10 . . . . . . . . . . . . 2 Targets Rammed 20 | . 4 2 11 1 . . . . . . . . . . . 2 Kicked . | . . . . . . . . . . . . . . . . . Crushed 2 | . . . 1 1 . . . . . . . . . . . . Highest Temperature 433 | . 259 132 167 100 433 4 9 11 20 36 14 . . . 201 242 Average Temperature 21 | . 83 21 20 18 16 2 2 2 9 11 3 . . . 71 109 Received Heat Transfer 1480 | . 57 99 336 846 . . . 18 18 . 52 . . . 45 9 Siege Activations . | . . . . . . . . . . . . . . . . . Martial Activations . | . . . . . . . . . . . . . . . . . Shielding Activations . | . . . . . . . . . . . . . . . . . Robots Disrupted . | . . . . . . . . . . . . . . . . . Combat Hostiles . | . . . . . . . . . . . . . . . . . Robots Corrupted 3 | . . . . 3 . . . . . . . . . . . . Combat Hostiles 1 | . . . . 1 . . . . . . . . . . . . Parts Fried 4 | . . . . . . . . . . . . . . . . 4 Impact Corruptions 9 | . . . . 7 . . . . . . . . . . . 2 Robots Melted . | . . . . . . . . . . . . . . . . . Combat Hostiles . | . . . . . . . . . . . . . . . . . Parts Melted 2 | . . . 2 . . . . . . . . . . . . . Heat Transferred 2294 | . . . 1850 . . . . . . . . . . . . 444 Parts Sabotaged . | . . . . . . . . . . . . . . . . . Parts Stolen . | . . . . . . . . . . . . . . . . . Parts Stripped . | . . . . . . . . . . . . . . . . . Power Chain Reactions . | . . . . . . . . . . . . . . . . . Alert | -11 -10 -10 -9 -8 -7 -7 -7 -7 -5 -4 -4 -4 -3 -3 -2 -2 ------- Run | Yrd Mat Min Mat Mat Fac Sto Rec Scr Fac Fac Ext Cet Res Qua Res Tes Maximum Alert Level 2 | . . . 2 1 . . . . 1 . 2 2 2 1 . . Low Security (%) 75 | 100 100 100 51 66 100 100 100 . 58 100 84 . . 54 100 100 Level 1 12 | . . . 6 33 . . . . 41 . 11 30 96 45 . . Level 2 11 | . . . 41 . . . . . . . 4 69 3 . . . Level 3 . | . . . . . . . . . . . . . . . . . Level 4 . | . . . . . . . . . . . . . . . . . Level 5 . | . . . . . . . . . . . . . . . . . High Security . | . . . . . . . . . . . . . . . . . Max Security . | . . . . . . . . . . . . . . . . . Peak Influence 601 | 10 177 82 601 288 53 56 19 . 265 73 501 456 403 265 182 80 Initial 276 | . . 22 . 247 53 2 19 . . 68 13 276 237 218 96 56 Average 139 | . 59 22 283 156 23 28 4 . 174 45 72 396 310 195 97 19 Influence Increases 6250 | 10 528 250 1195 843 190 140 24 15 487 150 1080 370 411 159 294 104 Destroy 0b10 Robot/C 2540 | . 320 200 720 340 . . . . 80 . 520 160 120 . 60 20 Destroy 0b10 Robot/NC 455 | 10 45 . 115 60 40 15 5 15 40 15 25 10 15 10 30 5 Destroy Leader 512 | . 54 50 198 100 6 2 . . 18 . 42 . 30 . 12 . Allied During Kill 541 | . . . . . . . . . . . 296 170 75 . . . Successful Hack 500 | . . . 29 12 47 21 14 . 50 44 74 . 95 38 33 43 Disable Machine 255 | . 15 . 60 15 15 60 . . . 30 . . . 60 . . Destroy Structure 607 | . 49 . 43 46 22 12 5 . 74 46 18 30 46 36 144 36 Partial Spotted 210 | . 15 . 15 . 45 30 . . 30 . 30 . 30 15 . . Lose Combat Pursuer 630 | . 30 . 15 270 15 . . . 195 15 75 . . . 15 . Influence Decreases 6250 | 10 471 307 608 1313 300 95 76 15 346 263 615 467 419 376 365 204 Entered New Map 1230 | . . 35 . 340 64 5 33 . . 73 15 217 159 170 75 44 Time Decay 3887 | 10 471 272 608 553 236 90 43 15 246 190 391 150 120 206 150 136 Search Patrol Dispatched 200 | . . . . 100 . . . . 100 . . . . . . . Lost Part 364 | . . . . 170 . . . . . . 10 20 . . 140 24 Lost Ally 419 | . . . . . . . . . . . 199 80 140 . . . Purge Threat 150 | . . . . 150 . . . . . . . . . . . . Squads Dispatched 32 | . 2 . 5 6 2 1 . . 3 2 2 . 2 1 4 2 Investigation 6 | . . . 1 . . . . . 1 1 1 . 1 . . 1 Extermination 8 | . . . . . 2 . . . 2 1 . . . 1 1 1 Reinforcement 14 | . 2 . 3 3 . 1 . . . . 1 . 1 . 3 . Assault 1 | . . . 1 . . . . . . . . . . . . . Garrison 3 | . . . . 3 . . . . . . . . . . . . Intercept . | . . . . . . . . . . . . . . . . . Searches Triggered 2 | . . . . 1 . . . . 1 . . . . . . . Construction Impeded 3 | . . . 1 1 . . . . . . 1 . . . . . Haulers Reinforced . | . . . . . . . . . . . . . . . . . Active Scanning Responses . | . . . . . . . . . . . . . . . . . Cargo Convoy Interrupts . | . . . . . . . . . . . . . . . . . Stealth | -11 -10 -10 -9 -8 -7 -7 -7 -7 -5 -4 -4 -4 -3 -3 -2 -2 --------- Run | Yrd Mat Min Mat Mat Fac Sto Rec Scr Fac Fac Ext Cet Res Qua Res Tes Distress Signals 22 | . . . 4 6 . . . . 1 . 5 2 2 . 1 1 Communications Jammed 4 | . . . . . . 2 . . . . . . . . 2 . Distress Signals 4 | . . . . . . 2 . . . . . . . . 2 . Times Spotted 284 | . 28 10 50 43 8 3 . 19 28 6 30 7 1 7 35 9 Peak Tracking Total 16 | . 4 3 5 6 2 1 . 7 5 3 10 5 3 2 16 5 Tactical Retreats 36 | . 2 . 1 8 1 . . 2 9 2 4 . . . 7 . ECM-based Alert Blocks 30 | . . . . . . . . . 13 2 . . . . 15 . Traps | -11 -10 -10 -9 -8 -7 -7 -7 -7 -5 -4 -4 -4 -3 -3 -2 -2 ------- Run | Yrd Mat Min Mat Mat Fac Sto Rec Scr Fac Fac Ext Cet Res Qua Res Tes Traps Triggered 10 | . 2 . 1 . 1 2 . . 1 . 2 . . . 1 . Indirectly . | . . . . . . . . . . . . . . . . . Trap Hack Attempts . | . . . . . . . . . . . . . . . . . Triggered . | . . . . . . . . . . . . . . . . . Disarmed 8 | . . . . . . . . . . . 8 . . . . . Reprogrammed . | . . . . . . . . . . . . . . . . . Reused . | . . . . . . . . . . . . . . . . . Traps Extracted . | . . . . . . . . . . . . . . . . . Installed . | . . . . . . . . . . . . . . . . . Triggered . | . . . . . . . . . . . . . . . . . Machines | -11 -10 -10 -9 -8 -7 -7 -7 -7 -5 -4 -4 -4 -3 -3 -2 -2 ---------- Run | Yrd Mat Min Mat Mat Fac Sto Rec Scr Fac Fac Ext Cet Res Qua Res Tes Machines Disabled 22 | . 1 . 5 1 1 4 . 2 . 2 2 . . 4 . . Max in Single Turn 1 | . 1 . 1 1 1 1 . 1 . 1 . . . 1 . . Garrison Access 2 | . . . . . . . . . . . . . 1 . . 1 Machines Repaired . | . . . . . . . . . . . . . . . . . Machines Dismantled . | . . . . . . . . . . . . . . . . . Machines Sabotaged . | . . . . . . . . . . . . . . . . . Overloaded Fab Kills . | . . . . . . . . . . . . . . . . . Hacking | -11 -10 -10 -9 -8 -7 -7 -7 -7 -5 -4 -4 -4 -3 -3 -2 -2 --------- Run | Yrd Mat Min Mat Mat Fac Sto Rec Scr Fac Fac Ext Cet Res Qua Res Tes Machines Accessed 102 | . 3 . 9 5 10 6 4 9 7 7 15 3 7 7 3 7 Terminals 72 | . 3 . 5 4 9 6 2 . 4 5 15 3 3 6 1 6 Fabricators 1 | . . . . . . . . . 1 . . . . . . . Repair Stations 6 | . . . 2 . . . . . 1 1 . . 1 . 1 . Recycling Units 2 | . . . . . . . 2 . . . . . . . . . Scanalyzers 8 | . . . 2 1 1 . . . 1 . . . 1 1 1 . Garrison Access 4 | . . . . . . . . . . 1 . . 2 . . 1 Total Hacks 261 | . 4 . 24 20 18 12 7 60 15 15 30 6 16 16 7 11 Successful 156 | . 2 . 13 10 9 3 2 60 9 6 18 2 6 6 3 7 Failed 102 | . 2 . 10 10 8 9 5 . 6 9 12 4 10 9 4 4 Catastrophic 20 | . 1 . 4 3 3 . . . 1 1 2 2 1 . 1 1 Database Lockouts 3 | . . . 1 . 1 . . . . . . . . 1 . . Manual 35 | . . . 3 3 1 1 2 . 3 5 10 1 . 4 . 2 Terminals 149 | . 4 . 6 18 15 12 4 . 9 12 30 6 7 14 2 10 Fabricators 2 | . . . . . . . . . 2 . . . . . . . Repair Stations 17 | . . . 8 . . . . . 2 1 . . 3 . 3 . Recycling Units 3 | . . . . . . . 3 . . . . . . . . . Scanalyzers 23 | . . . 10 2 3 . . . 2 . . . 2 2 2 . Garrison Access 7 | . . . . . . . . . . 2 . . 4 . . 1 Terminal Hacks 122 | . 2 . 2 8 7 3 . 60 4 5 14 2 3 5 1 6 Record 64 | . . . . . . . . 59 . . . 2 . 2 . 1 Robot Analysis 3 | . . . . 1 1 . . . . 1 . . . . . . Prototype ID Bank 3 | . . . . 1 1 . . . . . . . . 1 . . Open Door 11 | . . . . . . 2 . . . 1 8 . . . . . Level Access Points 2 | . . . . . . . . . . . . . 1 . . 1 Branch Access Points 7 | . . . . 1 1 . . . . 1 . . 1 1 1 1 Terminal Index 3 | . . . . 1 1 . . . . . . . 1 . . . Garrison Index 1 | . . . . . . . . . . . . . . . . 1 Alert Level 1 | . . . . . . . . . . . . . . . . 1 Unreport Threat 1 | . . . . 1 . . . . . . . . . . . . Locate Traps 12 | . 1 . 1 1 2 1 . . 2 1 2 . . 1 . . Disarm Traps 2 | . . . . . . . . . . . 2 . . . . . Reinforcement Status 1 | . . . . . . . . . . . 1 . . . . . Recall Reinforcements 2 | . 1 . . . . . . . . . 1 . . . . . Hauler Manifests 3 | . . . 1 1 1 . . . . . . . . . . . Registered Components 1 | . . . . . . . . . 1 . . . . . . . Zone Layout 4 | . . . . 1 . . . . 1 1 . . . . . 1 Proto ID Catalog 1 | . . . . . . . . 1 . . . . . . . . Fabricator Hacks 2 | . . . . . . . . . 2 . . . . . . . Load Schematic 1 | . . . . . . . . . 1 . . . . . . . Build 1 | . . . . . . . . . 1 . . . . . . . Repair Station Hacks 7 | . . . 4 . . . . . 1 . . . 1 . 1 . Scan Component 4 | . . . 3 . . . . . . . . . . . 1 . Repair 1 | . . . 1 . . . . . . . . . . . . . Refit 2 | . . . . . . . . . 1 . . . 1 . . . Recycling Unit Hacks 1 | . . . . . . . 1 . . . . . . . . . Retrieve Components 1 | . . . . . . . 1 . . . . . . . . . Scanalyzer 13 | . . . 6 2 2 . . . . . . . 1 1 1 . Insert Component 2 | . . . 2 . . . . . . . . . . . . . Analyze 2 | . . . 2 . . . . . . . . . . . . . Retrieve Study 9 | . . . 2 2 2 . . . . . . . 1 1 1 . Garrison Access Hacks 2 | . . . . . . . . . . . . . 1 . . 1 Seal Access 2 | . . . . . . . . . . . . . 1 . . 1 Unauthorized Hacks 9 | . . . 1 . . . 1 . 2 1 4 . . . . . Terminals 9 | . . . 1 . . . 1 . 2 1 4 . . . . . Botnet 4 | . . . . . . . . . 1 . 3 . . . . . Disrupt 5 | . . . 1 . . . 1 . 1 1 1 . . . . . Fabricators . | . . . . . . . . . . . . . . . . . Repair Stations . | . . . . . . . . . . . . . . . . . Recycling Units . | . . . . . . . . . . . . . . . . . Scanalyzers . | . . . . . . . . . . . . . . . . . Garrison Access . | . . . . . . . . . . . . . . . . . Data Cores Recovered 6 | . . . 2 1 3 . . . . . . . . . . . Used 2 | . . . . . 2 . . . . . . . . . . . Hacking Detections 69 | . 1 . 6 5 5 5 3 . 6 7 7 4 6 6 3 5 Full Trace Events 3 | . . . . . . . . . . 1 . . 1 . . 1 Feedback Events . | . . . . . . . . . . . . . . . . . Feedback Blocked . | . . . . . . . . . . . . . . . . . Robot Schematics Acquired . | . . . . . . . . . . . . . . . . . Robots Built . | . . . . . . . . . . . . . . . . . Authchips . | . . . . . . . . . . . . . . . . . Time . | . . . . . . . . . . . . . . . . . Total Robot Build Rating . | . . . . . . . . . . . . . . . . . Part Schematics Acquired 1 | . . . 1 . . . . . . . . . . . . . Parts Built 1 | . . . . . . . . . 1 . . . . . . . Authchips 1 | . . . . . . . . . 1 . . . . . . . Time 102 | . . . . . . . . . 102 . . . . . . . Total Part Build Rating 8 | . . . . . . . . . 8 . . . . . . . Part Studies Acquired 9 | . . . 2 2 2 . . . . . . . 1 1 1 . Parts Repaired 1 | . . . 1 . . . . . . . . . . . . . Time 136 | . . . 136 . . . . . . . . . . . . . Parts Recycled . | . . . . . . . . . . . . . . . . . Recycled Matter . | . . . . . . . . . . . . . . . . . Retrieved Matter . | . . . . . . . . . . . . . . . . . Retrieved Components . | . . . . . . . . . . . . . . . . . Parts Scanalyzed 1 | . . . 1 . . . . . . . . . . . . . Part Schematics Acquired 1 | . . . 1 . . . . . . . . . . . . . Parts Damaged . | . . . . . . . . . . . . . . . . . Bothacking | -11 -10 -10 -9 -8 -7 -7 -7 -7 -5 -4 -4 -4 -3 -3 -2 -2 ------------ Run | Yrd Mat Min Mat Mat Fac Sto Rec Scr Fac Fac Ext Cet Res Qua Res Tes Used RIF Installer . | . . . . . . . . . . . . . . . . . Robots Hacked 7 | . . . . . . . . 4 . . . . 1 2 . . Non-combat 3 | . . . . . . . . 1 . . . . 1 1 . . Combat 4 | . . . . . . . . 3 . . . . . 1 . . Robot Hacks Applied 8 | . . . . . . . . 4 . . . . 2 2 . . parse_system 5 | . . . . . . . . 4 . . . . . 1 . . no_distress 1 | . . . . . . . . . . . . . 1 . . . find_station 1 | . . . . . . . . . . . . . 1 . . . find_scanalyzer 1 | . . . . . . . . . . . . . . 1 . . Relay Couplers Released . | . . . . . . . . . . . . . . . . . Fabnet Peak Effective % . | . . . . . . . . . . . . . . . . . Robots Rewired 23 | . . . . . . . . . . . 23 . . . . . Allies Hacked . | . . . . . . . . . . . . . . . . . Hacks Repelled . | . . . . . . . . . . . . . . . . . Allies | -11 -10 -10 -9 -8 -7 -7 -7 -7 -5 -4 -4 -4 -3 -3 -2 -2 -------- Run | Yrd Mat Min Mat Mat Fac Sto Rec Scr Fac Fac Ext Cet Res Qua Res Tes Total Allies 40 | . . . . . . . . . . . 35 5 . . . . Largest Group 16 | . . . . . . . . . . . 14 16 14 . . . Highest-Rated Group 936 | . . . . . . . . . . . 698 936 847 . . . Highest-Rated Ally 159 | . . . . . . . . . . . 159 159 96 . . . Total Orders 1 | . . . . . . . . . . . 1 . . . . . FOLLOW 1 | . . . . . . . . . . . 1 . . . . . Ally Attacks 261 | . . . . . . . . . . . 139 72 50 . . . Total Damage 8558 | . . . . . . . . . . . 4082 2545 1931 . . . Kills 43 | . . . . . . . . . . . 26 10 7 . . . Allies Corrupted . | . . . . . . . . . . . . . . . . . Allies Melted 58 | . . . . . . . . 58 . . . . . . . . Intel | -11 -10 -10 -9 -8 -7 -7 -7 -7 -5 -4 -4 -4 -3 -3 -2 -2 ------- Run | Yrd Mat Min Mat Mat Fac Sto Rec Scr Fac Fac Ext Cet Res Qua Res Tes Active Infowar (turns) 14540 | 9 2538 1134 650 619 577 193 185 4508 472 389 1473 311 241 427 309 505 Optics 1220 | . . . . . 61 . . . . . . . . 345 309 505 Sensors 9941 | . . . . 581 577 193 185 4476 470 389 1473 311 241 427 285 333 Structural 5726 | . . . 392 37 458 153 185 4501 . . . . . . . . Seismic 4366 | 9 2538 1134 650 35 . . . . . . . . . . . . Cloaking 60 | . . . . . . . . . . . . . . . . 60 Jamming 376 | . . . . . . 2 . . . . . . . 253 121 . ECM 562 | . . . . . . . . . 113 157 79 . . . 213 . Robot Analysis Total 3 | . . . . 1 1 . . . . 1 . . . . . . Derelict Logs Recovered 3 | . . 3 . . . . . . . . . . . . . . Drone Launches . | . . . . . . . . . . . . . . . . . Drone Recoveries . | . . . . . . . . . . . . . . . . . Exploration | -11 -10 -10 -9 -8 -7 -7 -7 -7 -5 -4 -4 -4 -3 -3 -2 -2 ------------- Run | Yrd Mat Min Mat Mat Fac Sto Rec Scr Fac Fac Ext Cet Res Qua Res Tes Turns Passed 18516 | 76 2538 1134 3270 1610 577 193 185 4649 622 389 1475 311 242 431 309 505 Spaces Moved 15373 | 53 1084 479 1252 1325 1654 416 718 2540 1070 790 1478 366 463 581 696 408 Core 200 | 5 . . . . . . . . . . . . . . . 195 Treads 930 | . . . 610 320 . . . . . . . . . . . . Legs . | . . . . . . . . . . . . . . . . . Wheels 2253 | 48 1084 479 642 . . . . . . . . . . . . . Hover 58 | . . . . . . . . . 58 . . . . . . . Flight 11932 | . . . . 1005 1654 416 718 2540 1012 790 1478 366 463 581 696 213 Fastest Speed 21 | 50 95 215 200 23 23 23 23 23 30 30 24 25 21 21 26 27 Average Speed 65 | 90 201 215 208 68 23 23 23 23 36 32 30 26 25 29 28 78 Slowest Speed 550 | 100 215 215 240 200 23 96 23 96 60 36 33 29 100 32 100 550 Overloaded Moves 85 | . . . . . . . . . . . 31 . 2 52 . . Propulsion Burnouts . | . . . . . . . . . . . . . . . . . Robots Hopped 94 | . . . . 7 12 3 8 5 10 2 12 . 2 13 18 2 Potential Cave-ins 90 | . . . . . . . . 80 . . . . . 10 . . Cave-ins Triggered 9 | . . . . . . . . 9 . . . . . . . . Exploration Rate (%) 59 | 3 99 97 96 60 47 51 95 95 33 21 82 70 18 61 28 50 Regions Visited 16 Branch Regions 8 Pre-discovered Areas 2 | . . 1 . . . 1 . . . . . . . . . . Known Exits Taken 12 | . . . . 1 1 1 1 1 1 1 1 1 1 1 1 . Unknown Exits Taken 4 | 1 1 1 1 . . . . . . . . . . . . . Scrap Searched 9 | . . 3 . . . . . 6 . . . . . . . . Spaces Dug 266 | . . . 2 16 22 12 5 74 12 23 1 . 15 53 24 7 Terrain Destroyed 573 | . 48 . 47 46 22 12 5 191 36 23 1 . 15 54 61 12 Melee 194 | . . . 2 16 22 12 5 74 12 23 1 . 12 7 1 7 Projectile 78 | . . . . . . . . . . . . . 3 47 23 5 AOE 301 | . 48 . 45 30 . . . 117 24 . . . . . 37 . Terrain Rammed . | . . . . . . . . . . . . . . . . . Walls Destroyed . | . . . . . . . . . . . . . . . . . Machines Disabled . | . . . . . . . . . . . . . . . . . Actions | -11 -10 -10 -9 -8 -7 -7 -7 -7 -5 -4 -4 -4 -3 -3 -2 -2 --------- Run | Yrd Mat Min Mat Mat Fac Sto Rec Scr Fac Fac Ext Cet Res Qua Res Tes Total 22695 | 72 1333 540 1701 1849 1787 472 719 6468 1239 879 2452 571 560 755 741 557 Wait 6006 | 1 138 19 170 361 85 24 4 3809 110 49 802 191 54 82 9 98 Move 15176 | 52 1083 478 1251 1311 1633 409 703 2526 1048 784 1453 365 459 555 662 404 Hop 79 | . . . . 6 8 3 6 3 10 2 11 . 1 12 15 2 Pick Up 129 | 9 24 7 33 12 5 . . 5 6 4 2 3 8 5 4 2 Fast Attach 85 | 5 1 . 11 4 6 8 . 9 13 1 3 . 2 9 2 11 Attach 49 | 2 . 1 8 19 2 . . 2 5 1 . 1 2 1 2 3 Detach 11 | . . . 1 . 2 . . 1 2 . . . 1 . . 4 Swap 110 | . 14 1 35 14 3 2 . 5 4 5 4 4 4 9 6 . Drop 165 | . 12 7 51 18 10 4 . 13 10 4 3 2 8 16 3 4 Fire 394 | 3 57 25 128 76 . . . 7 3 . . . 3 47 27 18 Melee 315 | . . . 2 27 33 22 6 83 27 28 25 5 18 19 11 9 Ram 3 | . 1 . . . . . . . . . . . . . . 2 Kick . | . . . . . . . . . . . . . . . . . Crush 17 | . 3 2 11 1 . . . . . . . . . . . . Escape Stasis 24 | . . . . . . . . 5 1 1 17 . . . . . Rewire 132 | . . . . . . . . . . . 132 . . . . . Trap . | . . . . . . . . . . . . . . . . . Miscellaneous . | . . . . . . . . . . . . . . . . . Route ------- -11/Scrapyard -10/Materials (discovered 6 exits: *Mat x3 / [*Min x2] / [*Sub]) -10/Mines (discovered 2 exits: *Mat x2) -9/Materials (discovered 3 exits: *Mat x2 / *Min) -8/Materials -7/Factory (discovered 7 exits: *Fac x3 / *Sto x2 / Low x2) -7/Storage -7/Recycling (discovered 2 exits: *Fac / *Scr) -7/Scraptown (discovered 2 exits: *Fac x2) -5/Factory -4/Factory (discovered 5 exits: Upp x2 / *Ext x2 / Arm) -4/Extension (discovered 2 exits: *Res / *Cet) -4/Cetus (discovered 2 exits: *Res / *Arc) -3/Research (discovered 5 exits: Res x3 / *Qua x2) -3/Quarantine -2/Research (discovered 2 exits: *Tes x2) -2/Testing (discovered 1 exit: Acc) History --------- Turn | Location | Event 31 | -11/Scrapyard | Discovered new exit (range 16) 77 | -11/Scrapyard | Entered Materials 313 | -10/Materials | Build established: Mutant 393 | -10/Materials | Discovered new exit (range 7) 478 | -10/Materials | Discovered new exit (range 16) 658 | -10/Materials | Discovered new exit (range 4) 1030 | -10/Materials | Discovered new exit (range 4) 1140 | -10/Materials | Discovered new exit (range 9) 2171 | -10/Materials | Discovered new exit (range 16) 2615 | -10/Materials | Entered Mines 2654 | -10/Mines | Met a Derelict bent on vengeance 2750 | -10/Mines | Learned Materials garrison access intel 2795 | -10/Mines | Discovered new exit (range 9) 3206 | -10/Mines | Discovered new exit (range 8) 3404 | -10/Mines | Found a damaged Exp. Sensor Array with a note attached 3410 | -10/Mines | Found Prototype Device 3749 | -10/Mines | Entered Materials 3749 | -9/Materials | Evolved 2 slots: Propulsion x1, Utility x1 3750 | -9/Materials | Identified exit to Mines 4560 | -9/Materials | Identified Exp. Sensor Array 4729 | -9/Materials | Build established: Scavenger-Mutant 4948 | -9/Materials | Discovered new exit (range 16) 5227 | -9/Materials | Central database locked down 5904 | -9/Materials | Repaired Broken Exp. Sensor Array 6183 | -9/Materials | Discovered new exit (range 14) 6644 | -9/Materials | Build established: Mutant 6949 | -9/Materials | First assault squad dispatched 7019 | -9/Materials | Entered another Materials area 7019 | -8/Materials | Evolved 2 slots: Propulsion x2 7020 | -8/Materials | Loaded intel: 1 garrison access location 7338 | -8/Materials | Build established: Scavenger-Mutant 7973 | -8/Materials | Core integrity fell below 50% 7988 | -8/Materials | Core integrity fell below 20% 8014 | -8/Materials | Lost 16 parts (2p7n2u5w) 8295 | -8/Materials | Build established: Sprinter 8324 | -8/Materials | Discovered new exit (range 12) 8326 | -8/Materials | Identified exit to Factory 8619 | -8/Materials | Search patrols dispatched 8629 | -8/Materials | Entered Factory 8629 | -7/Factory | Evolved 2 slots: Utility x2 8846 | -7/Factory | Identified exit to Storage 8846 | -7/Factory | Identified exit to Lower Caves 8872 | -7/Factory | Discovered new exit (range 5) 9055 | -7/Factory | Build established: Scout 9069 | -7/Factory | Discovered new exit (range 5) 9069 | -7/Factory | Identified exit to Factory 9092 | -7/Factory | Central database locked down 9113 | -7/Factory | Discovered exit to Factory (range 13) 9206 | -7/Factory | Entered Storage 9271 | -7/Storage | Learned location of Armory (-4) 9383 | -7/Storage | Used back door to open Recycling access 9390 | -7/Storage | Discovered new exit (range 3) 9399 | -7/Storage | Identified exit to Recycling 9399 | -7/Storage | Entered Recycling 9508 | -7/Recycling | Discovered new exit (range 16) 9511 | -7/Recycling | Identified exit to Factory 9573 | -7/Recycling | Scanned before Scraplab entrance 9577 | -7/Recycling | Discovered new exit (range 11) 9577 | -7/Recycling | Entered Scraplab 9581 | -7/Recycling | Identified exit to Scraptown 9584 | -7/Recycling | Entered Scraptown 9663 | -7/Scraptown | Discovered exit to Factory (range 7) 9688 | -7/Scraptown | Visited Awakened 9695 | -7/Scraptown | Visited Cyclists 9702 | -7/Scraptown | Heard Great Nut preacher, LISTEN AND RECITE! 9705 | -7/Scraptown | Visited Shadow of the Wyrm 9708 | -7/Scraptown | Visited Fellowship of the Rings 9742 | -7/Scraptown | Visited SPCMW 9749 | -7/Scraptown | Visited CPS Storage 9751 | -7/Scraptown | Visited Observation Area 9760 | -7/Scraptown | Visited UFD Registry 9760 | -7/Scraptown | Registered with UFD as "Scrapforce" 9766 | -7/Scraptown | Visited Infowarlord's Domain 9769 | -7/Scraptown | Visited LU-1G1's Boring Crew 9779 | -7/Scraptown | Visited Botcube Research 9825 | -7/Scraptown | Visited Supply Room 9831 | -7/Scraptown | Visited DA-N13 Charitable Foundation 9833 | -7/Scraptown | Found DCF Scrap (30 items) 9863 | -7/Scraptown | Visited Scrap Suit Storage 9870 | -7/Scraptown | Visited Junk Repository 9880 | -7/Scraptown | Discovered exit to Factory (range 3) 9899 | -7/Scraptown | Visited Derelict Rescue Squad 9907 | -7/Scraptown | Visited Science Guys 9917 | -7/Scraptown | Visited A0-MCA Data Center 9918 | -7/Scraptown | Given a B- rating by A0-MCA 9936 | -7/Scraptown | Entered Cyclist Reading Room 10015 | -7/Scraptown | Met Optimus 10015 | -7/Scraptown | Accepted into 0bPrime 10035 | -7/Scraptown | Found A0-MCA's Component Scanner 10048 | -7/Scraptown | Civil war broke out across Scraptown 10161 | -7/Scraptown | Lost 11 allies 10163 | -7/Scraptown | Found Prototype Processor 10163 | -7/Scraptown | Identified Expert System 10305 | -7/Scraptown | Lost 12 allies 10515 | -7/Scraptown | Optimus destroyed in the chaos of civil war 11877 | -7/Scraptown | Lost 4 allies 12421 | -7/Scraptown | Lost 3 allies 13013 | -7/Scraptown | Lost 4 allies 13125 | -7/Scraptown | Lost 3 allies 13771 | -7/Scraptown | Lost 7 allies 13896 | -7/Scraptown | Lost 3 allies 14060 | -7/Scraptown | Crushed by falling debris 14092 | -7/Scraptown | Crushed by falling debris 14098 | -7/Scraptown | Crushed by falling debris 14099 | -7/Scraptown | System corruption reached 10% 14111 | -7/Scraptown | Crushed by falling debris 14127 | -7/Scraptown | Crushed by falling debris 14155 | -7/Scraptown | Crushed by falling debris 14173 | -7/Scraptown | Crushed by falling debris 14193 | -7/Scraptown | Crushed by falling debris 14224 | -7/Scraptown | Lost 6 parts (1p2n2u1w) 14230 | -7/Scraptown | Crushed by falling debris 14233 | -7/Scraptown | Entered Factory 14233 | -5/Factory | Evolved 4 slots: Power x1, Propulsion x1, Utility x2 14419 | -5/Factory | Discovered new exit (range 14) 14432 | -5/Factory | Identified exit to Factory 14532 | -5/Factory | Build established: Mutant 14538 | -5/Factory | Fabricated Exp. Sensor Array (x1) 14833 | -5/Factory | Search patrols dispatched 14855 | -5/Factory | Entered another Factory area 14855 | -4/Factory | Evolved 2 slots: Propulsion x1, Utility x1 15068 | -4/Factory | Identified exit to Upper Caves 15068 | -4/Factory | Identified exit to Extension 15068 | -4/Factory | Identified exit to Armory 15244 | -4/Factory | Entered Extension 15280 | -4/Extension | Build established: Sprinter 15287 | -4/Extension | Spotted B-86 Titan 15357 | -4/Extension | Rescued a captive Derelict 15358 | -4/Extension | Rescued a captive Derelict 15372 | -4/Extension | Rescued a captive Derelict 15375 | -4/Extension | Rescued a captive Derelict 15632 | -4/Extension | Lost 3 allies 15884 | -4/Extension | Lost 4 allies 16180 | -4/Extension | Build established: Commander-Sprinter 16323 | -4/Extension | Allies destroyed B-86 Titan 16330 | -4/Extension | Spotted B-86 Titan 16346 | -4/Extension | Rescued a captive Derelict 16372 | -4/Extension | Lost 4 allies 16388 | -4/Extension | Rescued a captive Derelict 16394 | -4/Extension | Rescued a captive Derelict 16424 | -4/Extension | Rescued A7 16539 | -4/Extension | Rescued a captive Derelict 16539 | -4/Extension | Rescued a captive Derelict 16557 | -4/Extension | Rescued a captive Derelict 16558 | -4/Extension | Rescued a captive Derelict 16651 | -4/Extension | Discovered new exit (range 10) 16678 | -4/Extension | Discovered new exit (range 7) 16681 | -4/Extension | Identified exit to Cetus 16682 | -4/Extension | Identified exit to Research 16719 | -4/Extension | Entered Cetus 16719 | -4/Cetus | Accompanied by 13 allies (A7) 16724 | -4/Cetus | Acquired a Cetus Manufacturing Module code from A7 16755 | -4/Cetus | Spotted Cetus Guard 16755 | -4/Cetus | Spotted Cetus Guard 16761 | -4/Cetus | Spotted Cetus Guard 16768 | -4/Cetus | Allies destroyed Cetus Guard 16776 | -4/Cetus | Allies destroyed Cetus Guard 16777 | -4/Cetus | Allies destroyed Cetus Guard 16797 | -4/Cetus | Started Cetus Manufacturing Module 16822 | -4/Cetus | Manufactured an Enhanced Grunt 16834 | -4/Cetus | Discovered new exit (range 16) 16837 | -4/Cetus | Identified exit to Archives 16847 | -4/Cetus | Manufactured an Enhanced Grunt 16872 | -4/Cetus | Manufactured an Enhanced Grunt 16886 | -4/Cetus | Spotted Cetus Guard 16891 | -4/Cetus | Spotted Cetus Guard 16897 | -4/Cetus | Manufactured an Enhanced Grunt 16905 | -4/Cetus | Allies destroyed Cetus Guard 16911 | -4/Cetus | Extracted ID and sensor layout for unrecognized location from A7's data core 16913 | -4/Cetus | Found Med. Regenerative Plating 16917 | -4/Cetus | Discovered exit to Research (range 16) 16922 | -4/Cetus | Manufactured an Enhanced Grunt 16922 | -4/Cetus | Met Revision 17 16928 | -4/Cetus | Lost 4 allies 17030 | -4/Cetus | Entered Research 17030 | -3/Research | Accompanied by 14 allies 17030 | -3/Research | Evolved 2 slots: Utility x1, Weapon x1 17046 | -3/Research | Identified exit to Research 17070 | -3/Research | Identified exit to Quarantine 17230 | -3/Research | Revision forces began assault on 0b10 17272 | -3/Research | Entered Quarantine 17348 | -3/Quarantine | Central database locked down 17624 | -3/Quarantine | Found Alien Artifact 17624 | -3/Quarantine | Identified Phase Armor 17643 | -3/Quarantine | Discovered exit to Research (range 20) 17653 | -3/Quarantine | Found Alien Artifact 17653 | -3/Quarantine | Identified Phase Redirector 17703 | -3/Quarantine | Entered Research 17703 | -2/Research | Evolved 2 slots: Propulsion x2 17804 | -2/Research | Identified exit to Testing 17804 | -2/Research | Watched by a mysterious "MATRIX" hacker 17996 | -2/Research | System corruption reached 10% 18006 | -2/Research | Spotted B-90 Cyclops 18012 | -2/Research | Entered Testing 18038 | -2/Testing | Lost 12 parts (1p5n4u2w) 18265 | -2/Testing | Identified exit to Access 18379 | -2/Testing | Build established: Hacker-Assassin 18436 | -2/Testing | Core integrity fell below 50% 18453 | -2/Testing | Core integrity fell below 20% 18471 | -2/Testing | System corruption reached 30% 18479 | -2/Testing | Lost 8 parts (1p2n3u2w) 18517 | -2/Testing | Destroyed by G-73 Enforcer with Phase Gun Last Messages --------------- 18462_ Acquired Diametric Drive. 18468_ Slug penetrates Wall. 18472_ M=ZW9J#:I&NT0S=F/=IB 18482_ Potential Refractor disabled. 18483_ Slug penetrates Potential Refractor. 18483_ Slug penetrates Wall. 18483_ Diametric Drive destroyed. 18483_ Slug penetrates Wall. 18488_ System corrupted: Energy discharge (-23). 18489_ Acquired Faulty Diametric Drive. 18489_ Adv. Signal Interpreter broken. 18489_ Faulty integration triggers power surge. 18492_ Dropped Adv. Datajack. 18492_ Acquired Enh. Hardcell Cannon. 18495_ K-01 Serf cleans the Fabricator. 18507_ System corrupted: Energy discharge (-40). 18513_ Connecting with Terminal... 18513_ ALERT: Suspicious activity at Terminal T008. Dispatching Investigation squad. [Achievement: I Think I Know What's Going On] Map ----- +----------------------------------------------------+ | + " "#????????????????????????????????? | | ##### # " " "#????????????????????????????????? | | ????# ##"""""#????????????????????????????????? | | ????# ###############?????????????????????????? | | ????# #?????????????????????????? | | ????# #?????????????????????????? | | ????# #?????????????????????????? | | ????# #?????????????????????????? | | ?#######+########## #?????????????????????????? | | ?# #??????# #?????????????????????????? | | ?# #??????# #?????????????????????????? | | ?# ] #??????# #?????????????????????????? | | ?# #??????# #?????????????????????????? | | ?# """"""" #??????# #?????????????????????????? | | ?# """"""" #??????# #?????????????????????????? | | ## """"""" #??????# #?????????????????????????? | | + #??????# #?????????????????????????? | | #####+############# ####??????????????????????? | | ????# #??### #??????????????????????? | | ????# #??#"" #?###??????????????????? | | ##### #??#"" #?gg#??????????????????? | | # #??#"T """ """ # #??????????????????? | | """ # #??#"" """ """ #### ##????? #????????? | | """ # #??#"" """ """ #??! =## #????????? | | """ # ###### """ """ ### #????????? | | # """ """ R@ " g????? | | """ + ### #?????????? | | """ # #?? ##+####+#?????????? | | """ + [ #???#####?????????????????? | | ##+#############+###?????????????????????????? | | # ????????????????????????????????????????? | | # """" ??????????????????????????????????????? | | # ""R"" #????????????????????????????????????? | | ##### "" "" #????????????????????????????????????? | | ????# #????????????????????????????????????? | | ????# #????????????????????????????????????? | | ?????########????????????????????????????????????? | | | | | | | | | | | | | | | | | | | | | | | | | | | +----------------------------------------------------+ Best States ------------- Heat Dissipation 75 Energy Generation 33 Energy Capacity 350 Matter Stores 300 Matter Capacity 300 Sight Range 22 Robot Scan Range 20 Terrain Scan Density 10 ECM Strength 1 Jamming Range 16 Cloak Strength 3 Additional Mass Support 9 Armor Coverage 450 Propulsion Shielding 33 Evasion (%) 77 Recoil Reduction 5 Offensive Hacking 26 Authchip Count 1 Item Schematics ----------------- Exp. Sensor Array | -9/Materials | Scanalyzed Robot Schematics ------------------ None Fabricated ------------ Exp. Sensor Array | x1 | -5/Factory | Authchip Repaired ---------- Exp. Sensor Array | 62% | -9/Materials | Broken Studied --------- Wheel | -9/Materials | Hacked Lgt. Treads | -9/Materials | Hacked Hvy. Mace | -8/Materials | Hacked Scythe | -8/Materials | Hacked Hvy. Rocket Launcher | -7/Factory | Hacked Powered Hammer | -7/Factory | Hacked Q-thruster | -3/Research | Hacked Lgt. Angular Momentum Engine | -3/Quarantine | Hacked Impulse Thruster Array | -2/Research | Hacked Alien Tech Used ----------------- Phase Armor Phase Redirector Achievements -------------- Bob, First Of His Name Civilization 2243 I Think I Know What's Going On Link The Feds Official Business This Is My Hole Uncivil War Wiki Contributor You May Approach The Wall Challenges ------------ None Game ------ Seed DamperCoordinationDrillbomb Manual? 0 Play Time 07:33:22 Cumulative 186.0 hours Start 2026.07.31 @ 22:21:03 End 2026.08.18 @ 00:57:56 Sessions 7 Manual Loads 0 Difficulty Rogue Special Mode None Game No. 26 Rogue 14 Adventurer 5 Explorer 7 Win Type - Total 9 Types 8/0/1/0/0/0/0/0/0/0 Lore% 55 Gallery% 60 Achievement% 44 Wizard Run 0 Options --------- Layout 0 ASCII 0 Keyboard 0 Movement Arrows Keybinds 0 Fullscreen 1 Font 18/Smallcaps Map View 76x50 Zoom Use 0% Tactical HUD 1 Map Filters NONE Filters NONE Steam 1 RUN: b5ad3909-16c8-493c-b8b6-e7fe34c90a84